fUSD/lending_fUSD_20250125
["ID","MTS","AMOUNT","RATE_DAILY","PERIOD"]
[350325648,1737797443582,-500.0,0.00016983,2]
[350325650,1737797443591,-500.0,0.00016983,2]
[350325652,1737797443601,-500.0,0.00016983,2]
[350325656,1737797443610,-155.1019774,0.00016983,2]
[350325659,1737797443620,-500.0,0.00016983,2]
[350325662,1737797443629,-500.0,0.00016983,2]
[350325666,1737797443638,-500.0,0.00016983,2]
[350325669,1737797443647,-500.0,0.00016983,2]
[350325673,1737797443657,-500.0,0.00016983,2]
[350325677,1737797443666,-500.0,0.00016983,2]
[350325681,1737797443675,-321.34195063,0.00016983,2]
[350325684,1737797443684,-500.0,0.00016983,2]
[350325686,1737797443694,-500.0,0.00016983,2]
[350325688,1737797443703,-500.0,0.00016983,2]
[350325690,1737797443712,-500.0,0.00016983,2]
[350325692,1737797443721,-500.0,0.00016983,2]
[350325693,1737797443730,-500.0,0.00016983,2]
[350325696,1737797443739,-500.0,0.00016983,2]
[350325698,1737797443748,-500.0,0.00016983,2]
[350325699,1737797443760,-500.0,0.00016983,2]
[350325701,1737797443769,-624.42406703,0.00016983,2]
[350325703,1737797443778,-500.0,0.00016983,2]
[350325705,1737797443787,-500.0,0.00016983,2]
[350325707,1737797443796,-510.00262603,0.00016983,2]
[350325709,1737797443805,-500.0,0.00016983,2]
[350325711,1737797443814,-202.85641197,0.00016983,2]
[350325713,1737797443823,-257.62676514,0.00016983,2]
[350325714,1737797443832,-500.0,0.00016983,2]
[350325716,1737797443841,-500.0,0.00016983,2]
[350325718,1737797443851,-500.0,0.00016983,2]
[350325721,1737797443860,-500.0,0.00016983,2]
[350325723,1737797443870,-414.97307571,0.00016983,2]
[350325724,1737797443879,-500.0,0.00016983,2]
[350325726,1737797443889,-553.43622251,0.00016983,2]
[350325729,1737797443899,-500.0,0.00016983,2]
[350325731,1737797443908,-500.0,0.00016983,2]
[350325732,1737797443918,-500.0,0.00016983,2]
[350325735,1737797443928,-500.0,0.00016983,2]
[350325737,1737797443937,-500.0,0.00016983,2]
[350325739,1737797443947,-500.0,0.00016983,2]
[350325740,1737797443956,-500.0,0.00016983,2]
[350325742,1737797443965,-509.86214928,0.00016983,2]
[350325744,1737797443974,-500.0,0.00016983,2]
[350325746,1737797443984,-522.44532919,0.00016983,2]
[350325748,1737797443996,-500.0,0.00016983,2]
[350325750,1737797444005,-500.0,0.00016983,2]
[350325752,1737797444015,-500.0,0.00016983,2]
[350325754,1737797444024,-228.19442843,0.00016983,2]
[350325756,1737797444033,-500.0,0.00016983,2]
[350325758,1737797444043,-847.51,0.00016983,2]
[350325760,1737797444054,-511.10438094,0.00016983,2]
[350325762,1737797444063,-500.0,0.00016983,2]
[350325764,1737797444072,-500.0,0.00016983,2]
[350325766,1737797444082,-500.0,0.00016983,2]
[350325768,1737797444091,-500.0,0.00016983,2]
[350325770,1737797444099,-500.0,0.00016983,2]
[350325772,1737797444108,-500.0,0.00016983,2]
[350325774,1737797444117,-500.0,0.00016983,2]
[350325776,1737797444126,-621.00902689,0.00016983,2]
[350325778,1737797444135,-500.0,0.00016983,2]
[350325780,1737797444144,-500.0,0.00016983,2]
[350325782,1737797444154,-500.0,0.00016983,2]
[350325784,1737797444164,-500.0,0.00016983,2]
[350325786,1737797444174,-500.0,0.00016983,2]
[350325788,1737797444183,-500.0,0.00016983,2]
[350325790,1737797444192,-500.0,0.00016983,2]
[350325792,1737797444201,-500.0,0.00016983,2]
[350325794,1737797444210,-523.78909947,0.00016983,2]
[350325796,1737797444219,-500.0,0.00016983,2]
[350325798,1737797444228,-500.0,0.00016983,2]
[350325800,1737797444237,-500.0,0.00016983,2]
[350325802,1737797444247,-500.0,0.00016983,2]
[350325804,1737797444256,-503.35783074,0.00016983,2]
[350325806,1737797444266,-247.26285774,0.00016983,2]
[350325808,1737797444276,-500.0,0.00016983,2]
[350325810,1737797444286,-500.0,0.00016983,2]
[350325812,1737797444295,-500.0,0.00016983,2]
[350325813,1737797444304,-500.0,0.00016983,2]
[350325814,1737797444313,-500.0,0.00016983,2]
[350325815,1737797444323,-500.0,0.00016983,2]
[350325816,1737797444332,-500.0,0.00016983,2]
[350325817,1737797444341,-500.0,0.00016983,2]
[350325818,1737797444351,-500.0,0.00016983,2]
[350325819,1737797444359,-500.0,0.00016983,2]
[350325820,1737797444368,-500.0,0.00016983,2]
[350325821,1737797444376,-267.13152745,0.00016983,2]
[350325822,1737797444506,-500.0,0.00016983,2]
[350325823,1737797444517,-500.0,0.00016983,2]
[350325824,1737797444530,-500.0,0.00016983,2]
[350325825,1737797444540,-500.0,0.00016983,2]
[350325826,1737797444549,-500.0,0.00016983,2]
[350325827,1737797444559,-403.04081402,0.00016983,2]
[350325828,1737797444570,-500.0,0.00016983,2]
[350325829,1737797444580,-510.90473252,0.00016983,2]
[350325830,1737797444590,-500.0,0.00016983,2]
[350325831,1737797444599,-500.0,0.00016983,2]
[350325832,1737797444610,-500.0,0.00016983,2]
[350325833,1737797444620,-500.0,0.00016983,2]
[350325834,1737797444629,-500.0,0.00016983,2]
[350325835,1737797444638,-500.0,0.00016983,2]
[350325836,1737797444647,-500.0,0.00016983,2]
[350325837,1737797444656,-500.0,0.00016983,2]
[350325838,1737797444666,-500.0,0.00016983,2]
[350325839,1737797444675,-500.0,0.00016983,2]
[350325840,1737797444684,-500.0,0.00016983,2]
[350325841,1737797444694,-579.72,0.00016983,2]
[350325842,1737797444703,-500.0,0.00016983,2]
[350325843,1737797444712,-500.0,0.00016983,2]
[350325844,1737797444721,-500.0,0.00016983,2]
[350325845,1737797444731,-500.0,0.00016983,2]
[350325846,1737797444740,-500.0,0.00016983,2]
[350325847,1737797444750,-500.0,0.00016983,2]
[350325848,1737797444759,-500.0,0.00016983,2]
[350325849,1737797444769,-500.0,0.00016983,2]
[350325850,1737797444778,-500.0,0.00016983,2]
[350325851,1737797444787,-500.0,0.00016983,2]
[350325852,1737797444796,-201.21048973,0.00016983,2]
[350325853,1737797444806,-892.9,0.00016983,2]
[350325854,1737797444816,-511.80619204,0.00016983,2]
[350325855,1737797444825,-500.0,0.00016983,2]
[350325856,1737797444835,-500.0,0.00016983,2]
[350325857,1737797444844,-500.0,0.00016983,2]
[350325858,1737797444853,-810.96,0.00016983,2]
[350325859,1737797444862,-300.0,0.00016983,2]
[350325860,1737797444871,-509.69923556,0.00016983,2]
[350325861,1737797444881,-2187.67,0.00016983,2]
[350325862,1737797444891,-500.0,0.00016983,2]
[350325863,1737797444900,-500.0,0.00016983,2]
[350325864,1737797444909,-500.0,0.00016983,2]
[350325865,1737797444918,-500.0,0.00016983,2]
[350325866,1737797444928,-500.0,0.00016983,2]
[350325867,1737797444937,-500.0,0.00016983,2]
[350325868,1737797444947,-790.46,0.00016983,2]
[350325869,1737797444955,-503.05084948,0.00016983,2]
[350325870,1737797444965,-500.0,0.00016983,2]
[350325871,1737797444974,-500.0,0.00016983,2]
[350325872,1737797444983,-509.92715315,0.00016983,2]
[350325873,1737797444992,-1160.27,0.00016983,2]
[350325874,1737797445002,-621.32513961,0.00016983,2]
[350325875,1737797445011,-1757.48,0.00016983,2]
[350325876,1737797445020,-500.0,0.00016983,2]
[350325877,1737797445030,-500.0,0.00016983,2]
[350325878,1737797445039,-500.0,0.00016983,2]
[350325879,1737797445048,-500.0,0.00016983,2]
[350325880,1737797445057,-410.1409171,0.00016983,2]
[350325881,1737797445066,-500.0,0.00016983,2]
[350325882,1737797445075,-1000.0,0.00016983,2]
[350325883,1737797445084,-500.0,0.00016983,2]
[350325884,1737797445093,-500.0,0.00016983,2]
[350325885,1737797445102,-1272.01,0.00016983,2]
[350325886,1737797445111,-500.0,0.00016983,2]
[350325887,1737797445121,-500.0,0.00016983,2]
[350325888,1737797445130,-2144.12,0.00016983,2]
[350325889,1737797445141,-500.0,0.00016983,2]
[350325890,1737797445151,-500.0,0.00016983,2]
[350325891,1737797445160,-1761.29,0.00016983,2]
[350325892,1737797445170,-500.0,0.00016983,2]
[350325893,1737797445179,-500.0,0.00016983,2]
[350325894,1737797445188,-500.0,0.00016983,2]
[350325895,1737797445197,-500.0,0.00016983,2]
[350325896,1737797445207,-500.0,0.00016983,2]
[350325897,1737797445217,-500.0,0.00016983,2]
[350325898,1737797445226,-337.35284997,0.00016983,2]
[350325899,1737797445236,-500.0,0.00016983,2]
[350325900,1737797445245,-500.0,0.00016983,2]
[350325901,1737797445254,-500.0,0.00016983,2]
[350325902,1737797445264,-513.2413574,0.00016983,2]
[350325903,1737797445273,-500.0,0.00016983,2]
[350325904,1737797445283,-500.0,0.00016983,2]
[350325905,1737797445293,-500.0,0.00016984,2]
[350325906,1737797445303,-500.0,0.00016984,2]
[350325907,1737797445312,-500.0,0.00016984,2]
[350325908,1737797445322,-500.0,0.00016984,2]
[350325909,1737797445331,-500.0,0.00016984,2]
[350325910,1737797445340,-660.25,0.00016984,2]
[350325911,1737797445349,-500.0,0.00016984,2]
[350325912,1737797445358,-500.0,0.00016984,2]
[350325913,1737797445368,-500.0,0.00016984,2]
[350325914,1737797445377,-500.0,0.00016984,2]
[350325915,1737797445386,-500.0,0.00016984,2]
[350325916,1737797445395,-500.0,0.00016984,2]
[350325917,1737797445404,-500.0,0.00016984,2]
[350325918,1737797445414,-500.0,0.00016984,2]
[350325919,1737797445424,-500.0,0.00016984,2]
[350325920,1737797445434,-500.0,0.00016984,2]
[350325921,1737797445444,-500.0,0.00016984,2]
[350325922,1737797445453,-556.36,0.00016984,2]
[350325923,1737797445463,-500.0,0.00016984,2]
[350325924,1737797445472,-500.0,0.00016984,2]
[350325925,1737797445481,-500.0,0.00016984,2]
[350325926,1737797445491,-500.0,0.00016984,2]
[350325927,1737797445500,-556.97,0.00016984,2]
[350325928,1737797445509,-500.0,0.00016984,2]
[350325929,1737797445519,-500.0,0.00016984,2]
[350325930,1737797445531,-554.44,0.00016984,2]
[350325931,1737797445541,-520.83,0.00016984,2]
[350325932,1737797445550,-500.0,0.00016984,2]
[350325933,1737797445559,-500.0,0.00016984,2]
[350325934,1737797445569,-500.0,0.00016984,2]
[350325935,1737797445579,-500.0,0.00016984,2]
[350325936,1737797445588,-500.0,0.00016984,2]
[350325937,1737797445597,-500.0,0.00016984,2]
[350325938,1737797445608,-500.0,0.00016984,2]
[350325939,1737797445618,-500.0,0.00016984,2]
[350325940,1737797445627,-169.91845738,0.00016984,2]
[350325941,1737797445636,-500.0,0.00016984,2]
[350325942,1737797445646,-328.54667689,0.00016984,2]
[350325943,1737797445655,-500.0,0.00016984,2]
[350325944,1737797445665,-500.0,0.00016984,2]
[350325945,1737797445675,-500.0,0.00016984,2]
[350325946,1737797445684,-500.0,0.00016984,2]
[350325947,1737797445694,-500.0,0.00016984,2]
[350325948,1737797445703,-500.0,0.00016984,2]
[350325949,1737797445712,-500.0,0.00016984,2]
[350325950,1737797445721,-298.89040135,0.00016984,2]
[350325951,1737797445731,-670.64,0.00016984,2]
[350325952,1737797445741,-500.0,0.00016984,2]
[350325953,1737797445750,-602.32,0.00016984,2]
[350325954,1737797445759,-680.16,0.00016984,2]
[350325955,1737797445769,-500.0,0.00016984,2]
[350325956,1737797445779,-500.0,0.00016984,2]
[350325957,1737797445788,-529.1,0.00016984,2]
[350325958,1737797445798,-500.0,0.00016984,2]
[350325959,1737797445807,-500.0,0.00016984,2]
[350325960,1737797445817,-500.0,0.00016984,2]
[350325961,1737797445827,-500.0,0.00016984,2]
[350325962,1737797445837,-859.85,0.00016986,2]
[350325963,1737797445847,-966.49,0.00016986,2]
[350325964,1737797445856,-500.0,0.00016986,2]
[350325965,1737797445866,-1261.29,0.00016986,2]
[350325966,1737797445876,-1692.78,0.00016986,2]
[350325967,1737797445885,-500.0,0.00016986,2]
[350325968,1737797445897,-414.733287,0.00016986,2]
[350325969,1737797445907,-500.0,0.00016986,2]
[350325970,1737797445917,-500.0,0.00016986,2]
[350325971,1737797445926,-1322.88,0.00016986,2]
[350325972,1737797445935,-500.0,0.00016986,2]
[350325973,1737797445947,-3207.34,0.00016986,2]
[350325974,1737797445957,-886.87,0.00016986,2]
[350325975,1737797445966,-677.70576,0.00016986,2]
[350325976,1737797445976,-751.77,0.00016986,2]
[350325977,1737797445984,-1220.06,0.00016986,2]
[350325978,1737797445994,-1965.33,0.00016986,2]
[350325979,1737797446003,-1876.29,0.00016986,2]
[350325980,1737797446014,-1750.49,0.00016986,2]
[350325981,1737797446023,-620.77,0.00016986,2]
[350325982,1737797446033,-911.51,0.00016986,2]
[350325983,1737797446042,-500.0,0.00016986,2]
[350325984,1737797446051,-3623.03,0.00016986,2]
[350325985,1737797446061,-1095.65,0.00016986,2]
[350325986,1737797446071,-1144.83,0.00016986,2]
[350325987,1737797446081,-893.22,0.00016986,2]
[350325988,1737797446090,-3470.4,0.00016986,2]
[350325989,1737797446100,-670.47,0.00016986,2]
[350325990,1737797446110,-500.0,0.00016986,2]
[350325991,1737797446119,-500.0,0.00016986,2]
[350325992,1737797446129,-2172.47,0.00016986,2]
[350325993,1737797446138,-931.54,0.00016986,2]
[350325994,1737797446147,-500.0,0.00016986,2]
[350325995,1737797446156,-1892.47,0.00016986,2]
[350325996,1737797446165,-2137.64,0.00016986,2]
[350325997,1737797446174,-3965.67,0.00016986,2]
[350325998,1737797446183,-1137.65,0.00016986,2]
[350325999,1737797446192,-727.17,0.00016986,2]
[350326000,1737797446201,-526.37,0.00016986,2]
[350326001,1737797446210,-2139.73,0.00016986,2]
[350326002,1737797446219,-2356.62,0.00016986,2]
[350326003,1737797446228,-658.04,0.00016986,2]
[350326004,1737797446238,-500.0,0.00016986,2]
[350326005,1737797446247,-2776.17,0.00016986,2]
[350326006,1737797446256,-993.89,0.00016986,2]
[350326007,1737797446266,-1604.26,0.00016986,2]
[350326008,1737797446275,-500.0,0.00016986,2]
[350326009,1737797446284,-1575.32,0.00016986,2]
[350326010,1737797446293,-500.0,0.00016986,2]
[350326011,1737797446302,-767.56,0.00016986,2]
[350326012,1737797446311,-1799.67,0.00016986,2]
[350326013,1737797446320,-900.97,0.00016986,2]
[350326014,1737797446329,-1053.08,0.00016986,2]
[350326015,1737797446338,-2375.71,0.00016986,2]
[350326016,1737797446347,-500.0,0.00016986,2]
[350326017,1737797446357,-500.0,0.00016986,2]
[350326018,1737797446367,-3004.39,0.00016986,2]
[350326019,1737797446377,-730.12,0.00016986,2]
[350326020,1737797446386,-849.75,0.00016986,2]
[350326021,1737797446395,-681.52,0.00016986,2]
[350326022,1737797446405,-563.98,0.00016986,2]
[350326023,1737797446414,-500.0,0.00016986,2]
[350326024,1737797446423,-500.0,0.00016986,2]
[350326025,1737797446433,-1043.69,0.00016986,2]
[350326026,1737797446442,-549.73,0.00016986,2]
[350326027,1737797446451,-500.0,0.00016986,2]
[350326028,1737797446463,-719.35,0.00016986,2]
[350326029,1737797446473,-540.78,0.00016986,2]
[350326030,1737797446483,-500.0,0.00016986,2]
[350326031,1737797446493,-500.0,0.00016986,2]
[350326032,1737797446502,-500.0,0.00016986,2]
[350326033,1737797446512,-807.75,0.00016986,2]
[350326034,1737797446522,-1420.82,0.00016986,2]
[350326035,1737797446536,-607.11,0.00016986,2]
[350326036,1737797446547,-854.74,0.00016986,2]
[350326037,1737797446558,-1101.59,0.00016986,2]
[350326038,1737797446569,-1481.32,0.00016986,2]
[350326039,1737797446580,-1244.19,0.00016986,2]
[350326040,1737797446590,-500.0,0.00016986,2]
[350326041,1737797446601,-565.45,0.00016986,2]
[350326042,1737797446612,-638.58,0.00016986,2]
[350326043,1737797446623,-2982.69,0.00016986,2]
[350326044,1737797446634,-1162.18,0.00016986,2]
[350326045,1737797446643,-1367.72,0.00016986,2]
[350326046,1737797446653,-2048.69,0.00016986,2]
[350326047,1737797446662,-5695.13,0.00016986,2]
[350326048,1737797446671,-500.0,0.00016986,2]
[350326049,1737797446681,-600.0,0.00017,2]
[350326050,1737797446691,-2000.0,0.00017015,2]
[350326051,1737797446700,-200.0,0.00017015,2]
[350326052,1737797446710,-500.0,0.00017019,2]
[350326053,1737797446720,-500.0,0.00017019,2]
[350326054,1737797446730,-500.0,0.00017019,2]
[350326055,1737797446740,-500.0,0.00017019,2]
[350326056,1737797446749,-500.0,0.00017019,2]
[350326057,1737797446759,-553.97,0.00017019,2]
[350326058,1737797446769,-500.0,0.00017019,2]
[350326059,1737797446778,-525.50437458,0.00017019,2]
[350326060,1737797446788,-500.0,0.00017019,2]
[350326061,1737797446798,-500.0,0.00017019,2]
[350326062,1737797446807,-500.0,0.00017019,2]
[350326063,1737797446816,-584.38,0.00017019,2]
[350326064,1737797446826,-500.0,0.00017019,2]
[350326065,1737797446835,-500.0,0.00017019,2]
[350326066,1737797446845,-500.0,0.00017019,2]
[350326067,1737797446854,-500.0,0.00017019,2]
[350326068,1737797446864,-500.0,0.00017019,2]
[350326069,1737797446874,-500.0,0.00017019,2]
[350326070,1737797446885,-413.13569162,0.00017019,2]
[350326071,1737797446895,-500.0,0.00017019,2]
[350326072,1737797446905,-584.16,0.00017019,2]
[350326073,1737797446915,-500.0,0.00017019,2]
[350326074,1737797446925,-647.83,0.00017019,2]
[350326075,1737797446935,-572.01,0.00017019,2]
[350326076,1737797446944,-500.0,0.00017019,2]
[350326077,1737797446954,-500.0,0.00017019,2]
[350326078,1737797446963,-500.0,0.00017019,2]
[350326079,1737797446973,-704.28,0.00017019,2]
[350326080,1737797446982,-500.0,0.00017019,2]
[350326081,1737797446992,-500.0,0.00017019,2]
[350326082,1737797447001,-443.51931436,0.00017019,2]
[350326083,1737797447011,-500.0,0.00017019,2]
[350326084,1737797447022,-683.65,0.00017019,2]
[350326085,1737797447031,-627.37767151,0.00017019,2]
[350326086,1737797447041,-500.0,0.00017019,2]
[350326087,1737797447051,-544.45,0.00017019,2]
[350326088,1737797447060,-668.98,0.00017019,2]
[350326089,1737797447071,-558.68,0.00017019,2]
[350326090,1737797447081,-596.36,0.00017019,2]
[350326091,1737797447091,-500.0,0.00017019,2]
[350326092,1737797447100,-531.39,0.00017019,2]
[350326093,1737797447110,-599.6,0.00017019,2]
[350326094,1737797447121,-500.0,0.00017019,2]
[350326095,1737797447130,-703.57,0.00017019,2]
[350326096,1737797447139,-500.0,0.00017019,2]
[350326097,1737797447147,-577.49,0.00017019,2]
[350326098,1737797447156,-767.15,0.00017019,2]
[350326099,1737797447166,-730.31,0.00017019,2]
[350326100,1737797447175,-502.52,0.00017019,2]
[350326101,1737797447184,-734.62,0.00017019,2]
[350326102,1737797447194,-685.56,0.00017019,2]
[350326103,1737797447319,-730.02,0.00017019,2]
[350326104,1737797447328,-500.0,0.00017019,2]
[350326105,1737797447337,-500.0,0.00017019,2]
[350326106,1737797447346,-509.44,0.00017019,2]
[350326107,1737797447355,-500.0,0.00017019,2]
[350326108,1737797447364,-500.0,0.00017019,2]
[350326109,1737797447373,-500.0,0.00017019,2]
[350326110,1737797447382,-590.44,0.00017019,2]
[350326111,1737797447391,-500.0,0.00017019,2]
[350326112,1737797447400,-564.49,0.00017019,2]
[350326113,1737797447409,-602.74,0.00017019,2]
[350326114,1737797447419,-500.0,0.00017019,2]
[350326115,1737797447428,-670.66,0.00017019,2]
[350326116,1737797447438,-500.0,0.00017019,2]
[350326117,1737797447447,-542.87,0.00017019,2]
[350326118,1737797447456,-500.0,0.00017019,2]
[350326119,1737797447465,-599.52,0.00017019,2]
[350326120,1737797447474,-500.0,0.00017019,2]
[350326121,1737797447483,-500.0,0.00017019,2]
[350326122,1737797447493,-717.06,0.00017019,2]
[350326123,1737797447502,-500.0,0.00017019,2]
[350326124,1737797447511,-500.0,0.00017019,2]
[350326125,1737797447522,-500.0,0.00017019,2]
[350326126,1737797447535,-500.0,0.00017019,2]
[350326127,1737797447545,-500.0,0.00017019,2]
[350326128,1737797447554,-500.0,0.00017019,2]
[350326129,1737797447564,-633.21827669,0.0001702,2]
[350326130,1737797447574,-300.0,0.00017025,2]
[350326131,1737797447583,-1857.52180965,0.00017072,2]
[350326132,1737797447593,-210.92,0.00017093,2]
[350326133,1737797447603,-5547.1949785,0.00017111,2]
[350326134,1737797447613,-8077.190696,0.00017111,2]
[350326135,1737797447623,-672.44042542,0.00017119,2]
[350326136,1737797447633,-500.0,0.0001712,2]
[350326137,1737797447642,-500.0,0.0001712,2]
[350326138,1737797447651,-500.0,0.0001712,2]
[350326139,1737797447661,-500.0,0.0001712,2]
[350326140,1737797447670,-500.0,0.0001712,2]
[350326141,1737797447679,-500.0,0.0001712,2]
[350326142,1737797447688,-500.0,0.0001712,2]
[350326143,1737797447699,-500.0,0.0001712,2]
[350326144,1737797447708,-500.0,0.0001712,2]
[350326145,1737797447717,-500.0,0.0001712,2]
[350326146,1737797447726,-500.0,0.0001712,2]
[350326147,1737797447735,-500.0,0.0001712,2]
[350326148,1737797447745,-425.88040873,0.0001712,2]
[350326149,1737797447755,-500.0,0.0001712,2]
[350326150,1737797447764,-448.47346201,0.0001712,2]
[350326151,1737797447774,-500.0,0.0001712,2]
[350326152,1737797447783,-500.0,0.0001712,2]
[350326153,1737797447792,-500.0,0.0001712,2]
[350326154,1737797447802,-500.0,0.0001712,2]
[350326155,1737797447811,-156.30572689,0.0001712,2]
[350326156,1737797447821,-500.0,0.0001712,2]
[350326157,1737797447830,-486.62086799,0.0001712,2]
[350326158,1737797447839,-500.0,0.0001712,2]
[350326159,1737797447849,-847.51,0.0001712,2]
[350326160,1737797447859,-500.0,0.0001712,2]
[350326161,1737797447868,-389.16739715,0.0001712,2]
[350326162,1737797447878,-554.84,0.0001712,2]
[350326163,1737797447887,-500.0,0.0001712,2]
[350326164,1737797447897,-500.0,0.0001712,2]
[350326165,1737797447906,-500.0,0.0001712,2]
[350326166,1737797447915,-500.0,0.0001712,2]
[350326167,1737797447925,-471.98580638,0.0001712,2]
[350326168,1737797447934,-500.0,0.0001712,2]
[350326169,1737797447944,-500.0,0.0001712,2]
[350326170,1737797447953,-500.0,0.0001712,2]
[350326171,1737797447963,-500.0,0.0001712,2]
[350326172,1737797447972,-226.08,0.0001712,2]
[350326173,1737797447981,-500.0,0.0001712,2]
[350326174,1737797447990,-500.0,0.0001712,2]
[350326175,1737797447999,-500.0,0.0001712,2]
[350326176,1737797448008,-552.13482743,0.0001712,2]
[350326177,1737797448018,-500.0,0.0001712,2]
[350326178,1737797448027,-500.0,0.0001712,2]
[350326179,1737797448037,-517.41636782,0.0001712,2]
[350326180,1737797448046,-892.9,0.0001712,2]
[350326181,1737797448055,-500.0,0.0001712,2]
[350326182,1737797448064,-500.0,0.0001712,2]
[350326183,1737797448074,-810.96,0.0001712,2]
[350326184,1737797448083,-2187.67,0.0001712,2]
[350326185,1737797448092,-500.0,0.0001712,2]
[350326186,1737797448101,-500.0,0.0001712,2]
[350326187,1737797448110,-500.0,0.0001712,2]
[350326188,1737797448120,-500.0,0.0001712,2]
[350326189,1737797448129,-790.46,0.0001712,2]
[350326190,1737797448138,-1160.27,0.0001712,2]
[350326191,1737797448147,-1757.48,0.0001712,2]
[350326192,1737797448157,-500.0,0.0001712,2]
[350326193,1737797448166,-500.0,0.0001712,2]
[350326194,1737797448175,-249.89811632,0.0001712,2]
[350326195,1737797448184,-511.48560337,0.0001712,2]
[350326196,1737797448193,-1000.0,0.0001712,2]
[350326197,1737797448203,-500.0,0.0001712,2]
[350326198,1737797448212,-1272.01,0.0001712,2]
[350326199,1737797448222,-514.24628328,0.0001712,2]
[350326200,1737797448231,-500.0,0.0001712,2]
[350326201,1737797448242,-2144.12,0.0001712,2]
[350326202,1737797448251,-500.0,0.0001712,2]
[350326203,1737797448260,-1761.29,0.0001712,2]
[350326204,1737797448270,-596.32136742,0.0001712,2]
[350326205,1737797448279,-500.0,0.0001712,2]
[350326206,1737797448288,-500.0,0.0001712,2]
[350326207,1737797448298,-500.0,0.0001712,2]
[350326208,1737797448307,-500.0,0.0001712,2]
[350326209,1737797448316,-500.0,0.0001712,2]
[350326210,1737797448325,-500.0,0.0001712,2]
[350326211,1737797448335,-500.0,0.00017121,2]
[350326212,1737797448344,-500.0,0.00017121,2]
[350326213,1737797448353,-500.0,0.00017121,2]
[350326214,1737797448363,-279.88824265,0.00017121,2]
[350326215,1737797448372,-660.25,0.00017121,2]
[350326216,1737797448382,-500.0,0.00017121,2]
[350326217,1737797448391,-500.0,0.00017121,2]
[350326218,1737797448400,-500.0,0.00017121,2]
[350326219,1737797448409,-500.0,0.00017121,2]
[350326220,1737797448419,-500.0,0.00017121,2]
[350326221,1737797448429,-500.0,0.00017121,2]
[350326222,1737797448438,-500.0,0.00017121,2]
[350326223,1737797448447,-500.0,0.00017121,2]
[350326224,1737797448457,-500.0,0.00017121,2]
[350326225,1737797448466,-500.0,0.00017121,2]
[350326226,1737797448477,-556.36,0.00017121,2]
[350326227,1737797448488,-500.0,0.00017121,2]
[350326228,1737797448498,-500.0,0.00017121,2]
[350326229,1737797448507,-500.0,0.00017121,2]
[350326230,1737797448516,-556.97,0.00017121,2]
[350326231,1737797448527,-500.0,0.00017121,2]
[350326232,1737797448538,-500.0,0.00017121,2]
[350326233,1737797448547,-554.44,0.00017121,2]
[350326234,1737797448556,-520.83,0.00017121,2]
[350326235,1737797448565,-500.0,0.00017121,2]